[Event "Titled Tuesday Blitz June 1 2021"]
[White "Farahat, Ali"]
[Black "Alavi, Sayed Javad"]
[WhiteFideId "10600507"]
[BlackFideId "12500607"]
[WhiteElo "2352"]
[BlackElo "2495"]
[Result "1/2-1/2"]
[Round "02"]
[TimeControl "180+1"]
[Date "2021.06.01"]
[WhiteClock "0:00:28"]
[BlackClock "0:00:15"]

1. e4 {[%clk 0:03:00]}  e5 {[%clk 0:02:59]} 2. Nf3 {[%clk 0:03:00]}  Nc6 {[%clk 0:02:59]} 3. Bb5 {[%clk 0:03:01]}  Nf6 {[%clk 0:02:57]} 4. Nc3 {[%clk 0:03:00]}  Bd6 {[%clk 0:02:55]} 5. O-O {[%clk 0:02:59]}  O-O {[%clk 0:02:55]} 6. Re1 {[%clk 0:02:59]}  Re8 {[%clk 0:02:54]} 7. a3 {[%clk 0:02:59]}  a6 {[%clk 0:02:52]} 8. Bc4 {[%clk 0:02:59]}  h6 {[%clk 0:02:49]} 9. d3 {[%clk 0:02:57]}  Bc5 {[%clk 0:02:47]} 10. h3 {[%clk 0:02:57]}  d6 {[%clk 0:02:46]} 11. Ne2 {[%clk 0:02:52]}  Be6 {[%clk 0:02:42]} 12. Ng3 {[%clk 0:02:51]}  Qd7 {[%clk 0:02:34]} 13. c3 {[%clk 0:02:49]}  Ba7 {[%clk 0:02:23]} 14. Bxe6 {[%clk 0:02:43]}  fxe6 {[%clk 0:02:22]} 15. d4 {[%clk 0:02:39]}  exd4 {[%clk 0:02:02]} 16. cxd4 {[%clk 0:02:40]}  b5 {[%clk 0:01:56]} 17. Be3 {[%clk 0:02:39]}  d5 {[%clk 0:01:50]} 18. e5 {[%clk 0:02:38]}  Ne4 {[%clk 0:01:50]} 19. Rc1 {[%clk 0:02:19]}  Nxg3 {[%clk 0:01:44]} 20. fxg3 {[%clk 0:02:20]}  Ne7 {[%clk 0:01:43]} 21. Nd2 {[%clk 0:02:05]}  Nf5 {[%clk 0:01:40]} 22. Nb3 {[%clk 0:02:05]}  Rf8 {[%clk 0:01:34]} 23. Bf2 {[%clk 0:02:02]}  Qf7 {[%clk 0:01:33]} 24. Rf1 {[%clk 0:02:01]}  h5 {[%clk 0:01:14]} 25. Kh2 {[%clk 0:01:52]}  Rac8 {[%clk 0:01:12]} 26. Nc5 {[%clk 0:01:50]}  Bxc5 {[%clk 0:01:09]} 27. dxc5 {[%clk 0:01:43]}  Qg6 {[%clk 0:01:08]} 28. Qd3 {[%clk 0:01:40]}  c6 {[%clk 0:01:00]} 29. a4 {[%clk 0:01:39]}  Kh7 {[%clk 0:00:55]} 30. axb5 {[%clk 0:01:37]}  axb5 {[%clk 0:00:56]} 31. Ra1 {[%clk 0:01:37]}  Ra8 {[%clk 0:00:54]} 32. Rxa8 {[%clk 0:01:25]}  Rxa8 {[%clk 0:00:55]} 33. Qf3 {[%clk 0:01:26]}  Ra2 {[%clk 0:00:47]} 34. Qb3 {[%clk 0:01:23]}  Ra4 {[%clk 0:00:47]} 35. Qf3 {[%clk 0:01:20]}  Rb4 {[%clk 0:00:44]} 36. b3 {[%clk 0:01:17]}  Re4 {[%clk 0:00:40]} 37. Re1 {[%clk 0:01:14]}  Nd4 {[%clk 0:00:34]} 38. Qd1 {[%clk 0:01:08]}  Rxe1 {[%clk 0:00:28]} 39. Bxe1 {[%clk 0:01:09]}  Nf5 {[%clk 0:00:25]} 40. Bf2 {[%clk 0:01:05]}  Qg5 {[%clk 0:00:24]} 41. Qf3 {[%clk 0:01:04]}  Kg6 {[%clk 0:00:23]} 42. b4 {[%clk 0:01:02]}  Qd2 {[%clk 0:00:22]} 43. g4 {[%clk 0:01:02]}  hxg4 {[%clk 0:00:23]} 44. Qxg4+ {[%clk 0:00:59]}  Kf7 {[%clk 0:00:22]} 45. Qh5+ {[%clk 0:00:59]}  Kf8 {[%clk 0:00:21]} 46. Qh8+ {[%clk 0:00:54]}  Kf7 {[%clk 0:00:22]} 47. Qh5+ {[%clk 0:00:46]}  Kg8 {[%clk 0:00:18]} 48. Qe8+ {[%clk 0:00:34]}  Kh7 {[%clk 0:00:18]} 49. Qh5+ {[%clk 0:00:32]}  Qh6 {[%clk 0:00:19]} 50. Qf7 {[%clk 0:00:30]}  Qf4+ {[%clk 0:00:18]} 51. Kg1 {[%clk 0:00:29]}  Qc1+ {[%clk 0:00:18]} 52. Kh2 {[%clk 0:00:29]}  Qf4+ {[%clk 0:00:17]} 53. Kg1 {[%clk 0:00:29]}  Qxe5 {[%clk 0:00:13]} 54. Qh5+ {[%clk 0:00:29]}  Kg8 {[%clk 0:00:14]} 55. Qe8+ {[%clk 0:00:29]}  Kh7 {[%clk 0:00:14]} 56. Qh5+ {[%clk 0:00:28]}  Kg8 {[%clk 0:00:14]} 57. Qe8+ {[%clk 0:00:28]}  Kh7 {[%clk 0:00:15]} 58. Qh5+ {[%clk 0:00:28]} 1/2-1/2


[Site "https://www.chess.com"]

[Event "Titled Tuesday Blitz June 1 2021"]
[White "Golubev, Mikhail"]
[Black "Krivonosov, Oleg"]
[WhiteFideId "14100983"]
[BlackFideId "11600349"]
[WhiteElo "2374"]
[BlackElo "2469"]
[Result "0-1"]
[Round "02"]
[TimeControl "180+1"]
[Date "2021.06.01"]
[WhiteClock "0:00:04"]
[BlackClock "0:00:31"]

1. e4 {[%clk 0:03:00]}  e5 {[%clk 0:02:58]} 2. Nf3 {[%clk 0:03:00]}  Nc6 {[%clk 0:02:58]} 3. Bb5 {[%clk 0:02:59]}  Nf6 {[%clk 0:02:57]} 4. O-O {[%clk 0:02:55]}  Nxe4 {[%clk 0:02:56]} 5. Re1 {[%clk 0:02:54]}  Nd6 {[%clk 0:02:55]} 6. Bf1 {[%clk 0:02:50]}  Be7 {[%clk 0:02:52]} 7. Nc3 {[%clk 0:02:49]}  O-O {[%clk 0:02:51]} 8. d4 {[%clk 0:02:48]}  e4 {[%clk 0:02:49]} 9. Nxe4 {[%clk 0:02:46]}  Nxe4 {[%clk 0:02:48]} 10. Rxe4 {[%clk 0:02:46]}  d5 {[%clk 0:02:48]} 11. Re1 {[%clk 0:02:46]}  Bf5 {[%clk 0:02:45]} 12. Bb5 {[%clk 0:02:30]}  Bd6 {[%clk 0:02:36]} 13. Bg5 {[%clk 0:02:02]}  Qd7 {[%clk 0:02:25]} 14. Ne5 {[%clk 0:01:55]}  Bxe5 {[%clk 0:02:24]} 15. dxe5 {[%clk 0:01:54]}  a6 {[%clk 0:02:14]} 16. Ba4 {[%clk 0:01:53]}  h6 {[%clk 0:02:10]} 17. Bf4 {[%clk 0:01:49]}  Rad8 {[%clk 0:02:04]} 18. Qd2 {[%clk 0:01:45]}  Rfe8 {[%clk 0:01:56]} 19. Rad1 {[%clk 0:01:42]}  b5 {[%clk 0:01:50]} 20. Bb3 {[%clk 0:01:42]}  Ne7 {[%clk 0:01:48]} 21. Qc3 {[%clk 0:01:14]}  c6 {[%clk 0:01:43]} 22. h3 {[%clk 0:01:06]}  Ng6 {[%clk 0:01:35]} 23. Bg3 {[%clk 0:01:06]}  h5 {[%clk 0:01:31]} 24. a4 {[%clk 0:01:00]}  h4 {[%clk 0:01:28]} 25. Bh2 {[%clk 0:01:00]}  Be6 {[%clk 0:01:17]} 26. Qc5 {[%clk 0:00:34]}  Ne7 {[%clk 0:01:09]} 27. Kh1 {[%clk 0:00:24]}  Nf5 {[%clk 0:01:07]} 28. c3 {[%clk 0:00:20]}  Rc8 {[%clk 0:01:02]} 29. Bc2 {[%clk 0:00:20]}  Qe7 {[%clk 0:00:55]} 30. Qxe7 {[%clk 0:00:14]}  Nxe7 {[%clk 0:00:54]} 31. Bf4 {[%clk 0:00:12]}  Bf5 {[%clk 0:00:49]} 32. Bb3 {[%clk 0:00:09]}  Ng6 {[%clk 0:00:47]} 33. Bg5 {[%clk 0:00:09]}  Nxe5 {[%clk 0:00:44]} 34. Bxh4 {[%clk 0:00:08]}  Nd3 {[%clk 0:00:41]} 35. Rxe8+ {[%clk 0:00:07]}  Rxe8 {[%clk 0:00:42]} 36. Bc2 {[%clk 0:00:02]}  Nxf2+ {[%clk 0:00:37]} 37. Bxf2 {[%clk 0:00:03]}  Bxc2 {[%clk 0:00:37]} 38. Re1 {[%clk 0:00:04]}  Rxe1+ {[%clk 0:00:35]} 39. Bxe1 {[%clk 0:00:04]}  Bxa4 {[%clk 0:00:35]} 40. Bf2 {[%clk 0:00:04]}  f6 {[%clk 0:00:33]} 41. Bc5 {[%clk 0:00:03]}  Kf7 {[%clk 0:00:33]} 42. Kg1 {[%clk 0:00:04]}  Ke6 {[%clk 0:00:34]} 43. Kf2 {[%clk 0:00:04]}  Bc2 {[%clk 0:00:32]} 44. h4 {[%clk 0:00:04]}  Kf5 {[%clk 0:00:31]} 0-1


[Site "https://www.chess.com"]

[Event "Titled Tuesday Blitz June 1 2021"]
[White "Guzman Moneo, Alberto"]
[Black "Jarovinsky, Alexey"]
[WhiteFideId "2209616"]
[BlackFideId "14115131"]
[WhiteElo "2157"]
[BlackElo "2446"]
[Result "0-1"]
[Round "02"]
[TimeControl "180+1"]
[Date "2021.06.01"]
[WhiteClock "0:00:46"]
[BlackClock "0:00:17"]

1. e4 {[%clk 0:02:58]}  Nc6 {[%clk 0:02:57]} 2. Nf3 {[%clk 0:02:57]}  d6 {[%clk 0:02:51]} 3. d4 {[%clk 0:02:56]}  g6 {[%clk 0:02:50]} 4. h3 {[%clk 0:02:47]}  Bg7 {[%clk 0:02:49]} 5. c3 {[%clk 0:02:47]}  Nf6 {[%clk 0:02:43]} 6. Nbd2 {[%clk 0:02:43]}  O-O {[%clk 0:02:39]} 7. Bb5 {[%clk 0:02:39]}  Bd7 {[%clk 0:02:32]} 8. O-O {[%clk 0:02:35]}  a6 {[%clk 0:02:31]} 9. Ba4 {[%clk 0:02:32]}  b5 {[%clk 0:02:29]} 10. Bc2 {[%clk 0:02:31]}  e5 {[%clk 0:02:28]} 11. dxe5 {[%clk 0:02:25]}  dxe5 {[%clk 0:02:23]} 12. Nb3 {[%clk 0:02:22]}  Qe7 {[%clk 0:02:13]} 13. Be3 {[%clk 0:02:20]}  Rfd8 {[%clk 0:02:12]} 14. Bc5 {[%clk 0:02:19]}  Qe8 {[%clk 0:02:10]} 15. Qe2 {[%clk 0:02:13]}  Nh5 {[%clk 0:02:09]} 16. Be3 {[%clk 0:02:06]}  Be6 {[%clk 0:01:56]} 17. Rad1 {[%clk 0:01:58]}  Bc4 {[%clk 0:01:41]} 18. Bd3 {[%clk 0:01:58]}  Rxd3 {[%clk 0:01:39]} 19. Rxd3 {[%clk 0:01:58]}  Nf4 {[%clk 0:01:28]} 20. Bxf4 {[%clk 0:01:56]}  exf4 {[%clk 0:01:29]} 21. Rfd1 {[%clk 0:01:50]}  b4 {[%clk 0:01:24]} 22. Nbd4 {[%clk 0:01:34]}  bxc3 {[%clk 0:01:04]} 23. Nxc6 {[%clk 0:01:12]}  Bxd3 {[%clk 0:01:03]} 24. Rxd3 {[%clk 0:01:08]}  cxb2 {[%clk 0:00:44]} 25. Rd1 {[%clk 0:01:07]}  Qxc6 {[%clk 0:00:42]} 26. e5 {[%clk 0:01:06]}  Rb8 {[%clk 0:00:36]} 27. Qd3 {[%clk 0:00:56]}  Qc1 {[%clk 0:00:33]} 28. e6 {[%clk 0:00:54]}  Qxd1+ {[%clk 0:00:31]} 29. Qxd1 {[%clk 0:00:54]}  b1=Q {[%clk 0:00:31]} 30. exf7+ {[%clk 0:00:54]}  Kxf7 {[%clk 0:00:27]} 31. Ng5+ {[%clk 0:00:53]}  Kg8 {[%clk 0:00:26]} 32. Qxb1 {[%clk 0:00:52]}  Rxb1+ {[%clk 0:00:27]} 33. Kh2 {[%clk 0:00:53]}  Rb2 {[%clk 0:00:27]} 34. Ne6 {[%clk 0:00:54]}  c6 {[%clk 0:00:23]} 35. h4 {[%clk 0:00:50]}  Rxf2 {[%clk 0:00:21]} 36. Kh3 {[%clk 0:00:50]}  Rxa2 {[%clk 0:00:20]} 37. Nxf4 {[%clk 0:00:49]}  Be5 {[%clk 0:00:19]} 38. Ne6 {[%clk 0:00:49]}  Ra3+ {[%clk 0:00:18]} 39. Kg4 {[%clk 0:00:46]}  Rg3# {[%clk 0:00:17]} 0-1


[Site "https://www.chess.com"]

[Event "Titled Tuesday Blitz June 1 2021"]
[White "Heinemann, Josefine"]
[Black "Can, Emre"]
[WhiteFideId "12900460"]
[BlackFideId "6302181"]
[WhiteElo "2300"]
[BlackElo "2503"]
[Result "1-0"]
[Round "02"]
[TimeControl "180+1"]
[Date "2021.06.01"]
[WhiteClock "0:00:19"]
[BlackClock "0:00:20"]

1. Nf3 {[%clk 0:03:00]}  d5 {[%clk 0:02:59]} 2. g3 {[%clk 0:02:59]}  g6 {[%clk 0:03:00]} 3. Bg2 {[%clk 0:02:58]}  Bg7 {[%clk 0:03:00]} 4. d4 {[%clk 0:02:58]}  Nf6 {[%clk 0:02:59]} 5. O-O {[%clk 0:02:58]}  O-O {[%clk 0:02:59]} 6. c4 {[%clk 0:02:57]}  c6 {[%clk 0:03:00]} 7. cxd5 {[%clk 0:02:48]}  cxd5 {[%clk 0:02:59]} 8. Ne5 {[%clk 0:02:48]}  e6 {[%clk 0:02:56]} 9. Nc3 {[%clk 0:02:47]}  Nbd7 {[%clk 0:02:53]} 10. Bf4 {[%clk 0:02:46]}  Nh5 {[%clk 0:02:51]} 11. Nxd7 {[%clk 0:02:43]}  Qxd7 {[%clk 0:02:48]} 12. Be3 {[%clk 0:02:40]}  b6 {[%clk 0:02:48]} 13. Rc1 {[%clk 0:02:38]}  Ba6 {[%clk 0:02:46]} 14. Qd2 {[%clk 0:02:36]}  Rfc8 {[%clk 0:02:45]} 15. Rc2 {[%clk 0:02:34]}  Nf6 {[%clk 0:02:34]} 16. Rfc1 {[%clk 0:02:31]}  Rc6 {[%clk 0:02:31]} 17. f3 {[%clk 0:02:20]}  Rac8 {[%clk 0:02:30]} 18. Nd1 {[%clk 0:01:59]}  Ne8 {[%clk 0:02:26]} 19. Rxc6 {[%clk 0:01:55]}  Rxc6 {[%clk 0:02:27]} 20. Kf2 {[%clk 0:01:53]}  Nd6 {[%clk 0:02:25]} 21. b3 {[%clk 0:01:48]}  Nf5 {[%clk 0:02:24]} 22. Rxc6 {[%clk 0:01:44]}  Qxc6 {[%clk 0:02:25]} 23. Bf1 {[%clk 0:01:22]}  e5 {[%clk 0:02:17]} 24. dxe5 {[%clk 0:01:15]}  Bxe5 {[%clk 0:02:16]} 25. Bf4 {[%clk 0:01:06]}  Qc5+ {[%clk 0:02:04]} 26. Kg2 {[%clk 0:01:02]}  Bf6 {[%clk 0:01:46]} 27. Ne3 {[%clk 0:00:45]}  Nxe3+ {[%clk 0:01:31]} 28. Bxe3 {[%clk 0:00:46]}  d4 {[%clk 0:01:27]} 29. Bf4 {[%clk 0:00:43]}  h5 {[%clk 0:01:26]} 30. h4 {[%clk 0:00:42]}  Qc3 {[%clk 0:01:22]} 31. Qxc3 {[%clk 0:00:32]}  dxc3 {[%clk 0:01:22]} 32. Bc1 {[%clk 0:00:33]}  Kf8 {[%clk 0:01:14]} 33. e4 {[%clk 0:00:32]}  Bb7 {[%clk 0:01:00]} 34. Bd3 {[%clk 0:00:23]}  Be5 {[%clk 0:00:58]} 35. f4 {[%clk 0:00:22]}  Bd4 {[%clk 0:00:58]} 36. Kf1 {[%clk 0:00:22]}  Ke7 {[%clk 0:00:57]} 37. Ke2 {[%clk 0:00:22]}  Bc6 {[%clk 0:00:55]} 38. Be3 {[%clk 0:00:20]}  Bg7 {[%clk 0:00:50]} 39. e5 {[%clk 0:00:19]}  Ke6 {[%clk 0:00:48]} 40. Bd4 {[%clk 0:00:19]}  Bf8 {[%clk 0:00:46]} 41. Bxc3 {[%clk 0:00:19]}  Bc5 {[%clk 0:00:47]} 42. Bd2 {[%clk 0:00:18]}  b5 {[%clk 0:00:44]} 43. Be3 {[%clk 0:00:18]}  Bxe3 {[%clk 0:00:43]} 44. Kxe3 {[%clk 0:00:18]}  a5 {[%clk 0:00:32]} 45. Kd4 {[%clk 0:00:17]}  b4 {[%clk 0:00:31]} 46. Kc5 {[%clk 0:00:17]}  Bf3 {[%clk 0:00:29]} 47. Kb5 {[%clk 0:00:16]}  Kd5 {[%clk 0:00:30]} 48. Kxa5 {[%clk 0:00:17]}  Kd4 {[%clk 0:00:30]} 49. Bc4 {[%clk 0:00:17]}  Kc3 {[%clk 0:00:31]} 50. Bxf7 {[%clk 0:00:17]}  Be4 {[%clk 0:00:31]} 51. e6 {[%clk 0:00:17]}  Bd5 {[%clk 0:00:31]} 52. Bxg6 {[%clk 0:00:17]}  Bxe6 {[%clk 0:00:31]} 53. Bxh5 {[%clk 0:00:18]}  Bf5 {[%clk 0:00:31]} 54. g4 {[%clk 0:00:18]}  Bb1 {[%clk 0:00:31]} 55. f5 {[%clk 0:00:18]}  Bxa2 {[%clk 0:00:31]} 56. Bf7 {[%clk 0:00:18]}  Bxb3 {[%clk 0:00:20]} 57. Bxb3 {[%clk 0:00:17]}  Kxb3 {[%clk 0:00:20]} 58. f6 {[%clk 0:00:18]}  Ka2 {[%clk 0:00:19]} 59. f7 {[%clk 0:00:19]}  b3 {[%clk 0:00:20]} 60. f8=Q {[%clk 0:00:19]}  b2 {[%clk 0:00:20]} 61. Qf2 {[%clk 0:00:19]} 1-0


[Site "https://www.chess.com"]

[Event "Titled Tuesday Blitz June 1 2021"]
[White "Jakubowski, Krzysztof"]
[Black "Paravyan, David"]
[WhiteFideId "1112848"]
[BlackFideId "4194985"]
[WhiteElo "2462"]
[BlackElo "2562"]
[Result "0-1"]
[Round "02"]
[TimeControl "180+1"]
[Date "2021.06.01"]
[WhiteClock "0:00:03"]
[BlackClock "0:00:04"]

1. e4 {[%clk 0:03:00]}  c5 {[%clk 0:02:49]} 2. Nf3 {[%clk 0:02:59]}  e6 {[%clk 0:02:50]} 3. d4 {[%clk 0:02:59]}  cxd4 {[%clk 0:02:47]} 4. Nxd4 {[%clk 0:03:00]}  Be7 {[%clk 0:02:46]} 5. Nc3 {[%clk 0:02:55]}  a6 {[%clk 0:02:46]} 6. Bd3 {[%clk 0:02:49]}  d6 {[%clk 0:02:31]} 7. f4 {[%clk 0:02:31]}  Nf6 {[%clk 0:02:30]} 8. Qf3 {[%clk 0:02:27]}  O-O {[%clk 0:02:28]} 9. Be3 {[%clk 0:02:18]}  Qc7 {[%clk 0:02:21]} 10. g4 {[%clk 0:02:10]}  b5 {[%clk 0:01:48]} 11. g5 {[%clk 0:02:08]}  Nfd7 {[%clk 0:01:49]} 12. h4 {[%clk 0:01:51]}  Bb7 {[%clk 0:01:49]} 13. h5 {[%clk 0:01:49]}  Nc5 {[%clk 0:01:48]} 14. a3 {[%clk 0:01:30]}  Nc6 {[%clk 0:01:30]} 15. O-O-O {[%clk 0:01:26]}  b4 {[%clk 0:01:20]} 16. axb4 {[%clk 0:01:17]}  Nxb4 {[%clk 0:01:20]} 17. g6 {[%clk 0:01:10]}  fxg6 {[%clk 0:01:15]} 18. hxg6 {[%clk 0:01:08]}  h6 {[%clk 0:01:16]} 19. Bc4 {[%clk 0:00:31]}  Bf6 {[%clk 0:00:19]} 20. Kb1 {[%clk 0:00:11]}  Rae8 {[%clk 0:00:16]} 21. f5 {[%clk 0:00:09]}  d5 {[%clk 0:00:10]} 22. exd5 {[%clk 0:00:07]}  Nd7 {[%clk 0:00:10]} 23. fxe6 {[%clk 0:00:05]}  Ne5 {[%clk 0:00:09]} 24. d6 {[%clk 0:00:03]}  Bxf3 {[%clk 0:00:05]} 25. dxc7 {[%clk 0:00:03]}  Nxc4 {[%clk 0:00:04]} 0-1


[Site "https://www.chess.com"]

[Event "Titled Tuesday Blitz June 1 2021"]
[White "Kamsky, Gata"]
[Black "Krishna Teja, N"]
[WhiteFideId "2000024"]
[BlackFideId "5001498"]
[WhiteElo "2644"]
[BlackElo "2278"]
[Result "1/2-1/2"]
[Round "02"]
[TimeControl "180+1"]
[Date "2021.06.01"]
[WhiteClock "0:00:21"]
[BlackClock "0:00:20"]

1. d4 {[%clk 0:03:00]}  d5 {[%clk 0:02:54]} 2. Nf3 {[%clk 0:02:59]}  Nf6 {[%clk 0:02:54]} 3. Bf4 {[%clk 0:02:59]}  e6 {[%clk 0:02:49]} 4. e3 {[%clk 0:02:58]}  Bd6 {[%clk 0:02:49]} 5. Ne5 {[%clk 0:02:58]}  Nfd7 {[%clk 0:02:31]} 6. Nd2 {[%clk 0:02:48]}  O-O {[%clk 0:02:28]} 7. Bd3 {[%clk 0:02:41]}  Bxe5 {[%clk 0:02:11]} 8. Bxe5 {[%clk 0:02:23]}  Nxe5 {[%clk 0:02:03]} 9. dxe5 {[%clk 0:02:23]}  c5 {[%clk 0:01:57]} 10. c3 {[%clk 0:02:18]}  Nc6 {[%clk 0:01:56]} 11. f4 {[%clk 0:02:16]}  f5 {[%clk 0:01:40]} 12. Qe2 {[%clk 0:01:59]}  c4 {[%clk 0:01:31]} 13. Bc2 {[%clk 0:01:59]}  b5 {[%clk 0:01:31]} 14. a3 {[%clk 0:01:58]}  a5 {[%clk 0:01:31]} 15. O-O {[%clk 0:01:55]}  Bd7 {[%clk 0:01:28]} 16. b4 {[%clk 0:01:20]}  axb4 {[%clk 0:01:17]} 17. axb4 {[%clk 0:01:19]}  Qb6 {[%clk 0:01:14]} 18. Qf2 {[%clk 0:01:06]}  Qb7 {[%clk 0:01:09]} 19. Nf3 {[%clk 0:01:04]}  Rxa1 {[%clk 0:01:08]} 20. Rxa1 {[%clk 0:01:03]}  Ra8 {[%clk 0:01:09]} 21. Qe1 {[%clk 0:01:04]}  Ra6 {[%clk 0:01:04]} 22. Qc1 {[%clk 0:00:59]}  Qa7 {[%clk 0:01:02]} 23. Rxa6 {[%clk 0:00:59]}  Qxa6 {[%clk 0:01:03]} 24. Qb2 {[%clk 0:00:59]}  Be8 {[%clk 0:01:02]} 25. h3 {[%clk 0:00:49]}  Bh5 {[%clk 0:01:01]} 26. Ng5 {[%clk 0:00:48]}  Nd8 {[%clk 0:00:53]} 27. g4 {[%clk 0:00:48]}  Bg6 {[%clk 0:00:53]} 28. gxf5 {[%clk 0:00:47]}  Bxf5 {[%clk 0:00:53]} 29. Bxf5 {[%clk 0:00:47]}  exf5 {[%clk 0:00:54]} 30. Qd2 {[%clk 0:00:47]}  Qc6 {[%clk 0:00:50]} 31. Kf2 {[%clk 0:00:45]}  Ne6 {[%clk 0:00:48]} 32. Nxe6 {[%clk 0:00:42]}  Qxe6 {[%clk 0:00:49]} 33. Qa2 {[%clk 0:00:42]}  Qc6 {[%clk 0:00:41]} 34. Qa7 {[%clk 0:00:40]}  h6 {[%clk 0:00:40]} 35. h4 {[%clk 0:00:39]}  Kh7 {[%clk 0:00:37]} 36. Qf7 {[%clk 0:00:38]}  Qg6 {[%clk 0:00:29]} 37. Qxd5 {[%clk 0:00:35]}  Qg4 {[%clk 0:00:28]} 38. Qh1 {[%clk 0:00:32]}  Qg6 {[%clk 0:00:26]} 39. Qg2 {[%clk 0:00:31]}  Qa6 {[%clk 0:00:25]} 40. Kg3 {[%clk 0:00:29]}  Qa1 {[%clk 0:00:23]} 41. Qd2 {[%clk 0:00:21]}  Qg1+ {[%clk 0:00:23]} 42. Kf3 {[%clk 0:00:21]}  Qh1+ {[%clk 0:00:20]} 43. Kg3 {[%clk 0:00:21]}  Qg1+ {[%clk 0:00:20]} 44. Kf3 {[%clk 0:00:21]}  Qh1+ {[%clk 0:00:20]} 45. Kg3 {[%clk 0:00:21]}  Qg1+ {[%clk 0:00:20]} 1/2-1/2


[Site "https://www.chess.com"]

[Event "Titled Tuesday Blitz June 1 2021"]
[White "Khumalo, Keith"]
[Black "Iniyan, P"]
[WhiteFideId "14319470"]
[BlackFideId "25002767"]
[WhiteElo "1992"]
[BlackElo "2400"]
[Result "1/2-1/2"]
[Round "02"]
[TimeControl "180+1"]
[Date "2021.06.01"]
[WhiteClock "0:01:10"]
[BlackClock "0:00:15"]

1. d4 {[%clk 0:03:00]}  Nf6 {[%clk 0:02:58]} 2. c4 {[%clk 0:02:59]}  e6 {[%clk 0:02:57]} 3. Nf3 {[%clk 0:02:59]}  Bb4+ {[%clk 0:02:56]} 4. Bd2 {[%clk 0:02:59]}  c5 {[%clk 0:02:56]} 5. Bxb4 {[%clk 0:02:58]}  cxb4 {[%clk 0:02:56]} 6. a3 {[%clk 0:02:57]}  bxa3 {[%clk 0:02:56]} 7. Nxa3 {[%clk 0:02:57]}  O-O {[%clk 0:02:56]} 8. g3 {[%clk 0:02:57]}  b6 {[%clk 0:02:56]} 9. Bg2 {[%clk 0:02:58]}  Bb7 {[%clk 0:02:57]} 10. O-O {[%clk 0:02:57]}  d6 {[%clk 0:02:57]} 11. b4 {[%clk 0:02:51]}  a5 {[%clk 0:02:50]} 12. bxa5 {[%clk 0:02:48]}  Rxa5 {[%clk 0:02:51]} 13. Nb5 {[%clk 0:02:46]}  Rxa1 {[%clk 0:02:42]} 14. Qxa1 {[%clk 0:02:47]}  d5 {[%clk 0:02:28]} 15. Ne5 {[%clk 0:02:38]}  Nc6 {[%clk 0:02:26]} 16. Rd1 {[%clk 0:02:33]}  Qb8 {[%clk 0:02:15]} 17. e3 {[%clk 0:02:22]}  Rd8 {[%clk 0:01:58]} 18. cxd5 {[%clk 0:02:14]}  Nxd5 {[%clk 0:01:53]} 19. Nc4 {[%clk 0:02:07]}  Nce7 {[%clk 0:01:28]} 20. Rb1 {[%clk 0:02:03]}  Nf6 {[%clk 0:01:18]} 21. Qa7 {[%clk 0:01:59]}  Bxg2 {[%clk 0:01:04]} 22. Qxb8 {[%clk 0:01:58]}  Rxb8 {[%clk 0:01:04]} 23. Kxg2 {[%clk 0:01:59]}  Ned5 {[%clk 0:00:58]} 24. Nbd6 {[%clk 0:01:56]}  h5 {[%clk 0:00:54]} 25. e4 {[%clk 0:01:56]}  Nc3 {[%clk 0:00:53]} 26. Rxb6 {[%clk 0:01:54]}  Rxb6 {[%clk 0:00:54]} 27. Nxb6 {[%clk 0:01:54]}  Nfxe4 {[%clk 0:00:53]} 28. Nxe4 {[%clk 0:01:54]}  Nxe4 {[%clk 0:00:54]} 29. Kf3 {[%clk 0:01:54]}  f5 {[%clk 0:00:52]} 30. h4 {[%clk 0:01:48]}  Kf7 {[%clk 0:00:51]} 31. Ke3 {[%clk 0:01:48]}  Kf6 {[%clk 0:00:48]} 32. Nd7+ {[%clk 0:01:47]}  Ke7 {[%clk 0:00:48]} 33. Ne5 {[%clk 0:01:48]}  Nf6 {[%clk 0:00:48]} 34. Ng6+ {[%clk 0:01:48]}  Kd6 {[%clk 0:00:48]} 35. Kd3 {[%clk 0:01:44]}  Nd5 {[%clk 0:00:38]} 36. Ne5 {[%clk 0:01:42]}  Nb4+ {[%clk 0:00:33]} 37. Kc3 {[%clk 0:01:39]}  Nc6 {[%clk 0:00:31]} 38. Ng6 {[%clk 0:01:21]}  Ne7 {[%clk 0:00:28]} 39. Ne5 {[%clk 0:01:19]}  Kd5 {[%clk 0:00:26]} 40. Kd3 {[%clk 0:01:19]}  Nc6 {[%clk 0:00:26]} 41. Ng6 {[%clk 0:01:18]}  Nb4+ {[%clk 0:00:19]} 42. Kc3 {[%clk 0:01:17]}  Na2+ {[%clk 0:00:18]} 43. Kd3 {[%clk 0:01:17]}  Nc1+ {[%clk 0:00:18]} 44. Ke3 {[%clk 0:01:15]}  Kd6 {[%clk 0:00:15]} 45. Nf4 {[%clk 0:01:15]}  e5 {[%clk 0:00:13]} 46. dxe5+ {[%clk 0:01:15]}  Kxe5 {[%clk 0:00:14]} 47. Nxh5 {[%clk 0:01:16]}  g6 {[%clk 0:00:15]} 48. Nf4 {[%clk 0:01:16]}  Kf6 {[%clk 0:00:15]} 49. Nd5+ {[%clk 0:01:16]}  Ke5 {[%clk 0:00:15]} 50. Nf4 {[%clk 0:01:15]}  Kf6 {[%clk 0:00:15]} 51. Nd3 {[%clk 0:01:14]}  Nb3 {[%clk 0:00:14]} 52. f4 {[%clk 0:01:15]}  Na5 {[%clk 0:00:14]} 53. Ne5 {[%clk 0:01:15]}  Nb3 {[%clk 0:00:14]} 54. Kf3 {[%clk 0:01:13]}  Nc5 {[%clk 0:00:14]} 55. g4 {[%clk 0:01:13]}  fxg4+ {[%clk 0:00:14]} 56. Kxg4 {[%clk 0:01:14]}  Ne6 {[%clk 0:00:14]} 57. Nd7+ {[%clk 0:01:14]}  Ke7 {[%clk 0:00:14]} 58. Ne5 {[%clk 0:01:14]}  Kf6 {[%clk 0:00:14]} 59. Nf3 {[%clk 0:01:13]}  Ng7 {[%clk 0:00:14]} 60. Ng5 {[%clk 0:01:12]}  Nf5 {[%clk 0:00:14]} 61. Ne4+ {[%clk 0:01:13]}  Kg7 {[%clk 0:00:14]} 62. Kg5 {[%clk 0:01:14]}  Nd4 {[%clk 0:00:15]} 63. h5 {[%clk 0:01:08]}  Ne6+ {[%clk 0:00:14]} 64. Kg4 {[%clk 0:01:09]}  gxh5+ {[%clk 0:00:14]} 65. Kxh5 {[%clk 0:01:10]}  Nxf4+ {[%clk 0:00:15]} 1/2-1/2


[Site "https://www.chess.com"]